[Event "Wuerttemberg Rapid Teams 2024"]
[Site "B?blingen, Germany"]
[Date "2024.04.13"]
[Round "9.17"]
[White "Seitz, Patrick"]
[Black "Oberst, Thomas"]
[Result "0-1"]
[ECO "A21"]
[WhiteElo "2125"]
[BlackElo "2227"]
[Annotator "RC"]
[PlyCount "100"]
[EventDate "2024.04.13"]
[EventType "team-tourn"]
[SourceTitle "playchess.com"]
[Source "ChessBase"]
[SourceQuality "1"]
[TimeControl "900+5"]

1. c4 {[%emt 0:00:13]} e5 {[%emt 0:00:08]} 2. a3 {[%emt 0:00:00]} c5 {[%emt 0:00:04]} 3. Nc3 {[%emt 0:00:00]} Nc6 {[%emt 0:00:02]} 4. g3 {[%emt 0:00:02]} g6 {[%emt 0:00:02]} 5. Bg2 {[%emt 0:00:01]} Bg7 {[%emt 0:00:02]} 6. d3 {[%emt 0:00:06]} f5 {[%emt 0:00:07]} 7. e3 {[%emt 0:00:43]} Nf6 {[%emt 0:00:04]} 8. Nge2 {[%emt 0:00:03]} O-O {[%emt 0:00:02]} 9. O-O {[%emt 0:00:02]} d6 {[%emt 0:00:31]} 10. Rb1 {[%emt 0:00:01]} Bd7 {[%emt 0:00:30]} 11. b4 {[%emt 0:00:08]} Rb8 {[%emt 0:00:20]} 12. b5 {[%emt 0:00:21]} Ne7 {[%emt 0:00:04]} 13. Bb2 {[%emt 0:00:11]} a6 {[%emt 0:00:38]} 14. a4 {[%emt 0:00:03]} Be6 {[%emt 0:00:17]} 15. Qb3 {[%emt 0:00:50]} d5 {[%emt 0:00:30]} 16. cxd5 {[%emt 0:00:22]} Nfxd5 {[%emt 0:00:02]} 17. Nxd5 {[%emt 0:00:37]} Nxd5 {[%emt 0:00:01]} 18. Qa3 {[%emt 0:00:15]} axb5 {[%emt 0:01:12]} 19. axb5 {[%emt 0:00:03]} b6 {[%emt 0:00:01]} 20. Ra1 {[%emt 0:00:04]} Nb4 {[%emt 0:00:02]} 21. d4 {[%emt 0:00:20]} Nc2 {[%emt 0:00:14]} 22. Qa4 {[%emt 0:01:10]} Nxa1 {[%emt 0:00:02]} 23. Qxa1 {[%emt 0:00:26]} cxd4 {[%emt 0:00:02]} 24. exd4 {[%emt 0:00:05]} e4 {[%emt 0:00:11]} 25. Nf4 {[%emt 0:00:34]} Bc4 {[%emt 0:00:20]} 26. Rc1 {[%emt 0:00:03]} Ra8 {[%emt 0:00:01]} 27. Qb1 {[%emt 0:00:09]} Bf7 {[%emt 0:00:11]} 28. d5 {[%emt 0:00:32]} Qd6 {[%emt 0:01:07]} 29. Bxg7 {[%emt 0:00:05]} Kxg7 {[%emt 0:00:02]} 30. Rc6 {[%emt 0:00:19]} Qe5 {[%emt 0:00:04]} 31. Bf1 {[%emt 0:00:30]} e3 {[%emt 0:01:24]} 32. fxe3 {[%emt 0:01:43]} Qxe3+ {[%emt 0:00:14]} 33. Kh1 {[%emt 0:00:09]} Rfe8 {[%emt 0:00:44]} 34. Rc7 {[%emt 0:01:29]} Kg8 {[%emt 0:01:17]} 35. d6 {[%emt 0:00:08]} Qe5 {[%emt 0:01:01]} 36. Rxf7 {[%emt 0:03:30]} Kxf7 {[%emt 0:00:02]} 37. Qb3+ {[%emt 0:00:00]} Kg7 {[%emt 0:02:21]} 38. d7 {[%emt 0:00:10]} Re7 {[%emt 0:01:31]} 39. Qd1 {[%emt 0:00:30]} Rd8 {[%emt 0:00:33]} 40. Bc4 {[%emt 0:00:30]} Qe1+ {[%emt 0:00:27]} 41. Qxe1 {[%emt 0:00:03]} Rxe1+ {[%emt 0:00:00]} 42. Kg2 {[%emt 0:00:01]} Rxd7 {[%emt 0:00:01]} 43. Nd5 {[%emt 0:00:48]} Rxd5 {[%emt 0:00:10]} 44. Bxd5 {[%emt 0:00:01]} Rb1 {[%emt 0:00:01]} 45. Bc6 {[%emt 0:00:01]} Kf6 {[%emt 0:00:01]} 46. Kf3 {[%emt 0:00:03]} g5 {[%emt 0:00:02]} 47. h4 {[%emt 0:00:01]} h6 {[%emt 0:00:01]} 48. hxg5+ {[%emt 0:00:01]} hxg5 {[%emt 0:00:01]} 49. Kf2 {[%emt 0:00:01]} Ke5 {[%emt 0:00:02]} 50. Ke3 {[%emt 0:00:01]} Rb4 {[%emt 0:00:09]} 0-1

[Event "Wuerttemberg Rapid Teams 2024"]
[Site "B?blingen, Germany"]
[Date "2024.04.13"]
[Round "9.18"]
[White "Narr, Kevin"]
[Black "Namyslo, Holger"]
[Result "1/2-1/2"]
[ECO "D02"]
[WhiteElo "1977"]
[BlackElo "2125"]
[Annotator "RC"]
[PlyCount "110"]
[EventDate "2024.04.13"]
[EventType "team-tourn"]
[SourceTitle "playchess.com"]
[Source "ChessBase"]
[SourceQuality "1"]
[TimeControl "900+5"]

1. d4 {[%emt 0:00:00]} d5 {[%emt 0:00:02]} 2. Nf3 {[%emt 0:00:01]} Nf6 {[%emt 0:00:02]} 3. c3 {[%emt 0:00:03]} e6 {[%emt 0:00:28]} 4. Bf4 {[%emt 0:00:08]} c5 {[%emt 0:00:05]} 5. e3 {[%emt 0:00:03]} Qb6 {[%emt 0:00:05]} 6. Qb3 {[%emt 0:00:16]} Nc6 {[%emt 0:00:07]} 7. Nbd2 {[%emt 0:00:35]} Be7 {[%emt 0:00:38]} 8. Be2 {[%emt 0:00:57]} O-O {[%emt 0:00:14]} 9. O-O {[%emt 0:00:49]} c4 {[%emt 0:00:22]} 10. Qc2 {[%emt 0:00:03]} h6 {[%emt 0:00:38]} 11. h3 {[%emt 0:00:33]} Na5 {[%emt 0:01:26]} 12. Rab1 {[%emt 0:00:18]} Bd6 {[%emt 0:00:45]} 13. Bxd6 {[%emt 0:00:17]} Qxd6 {[%emt 0:00:03]} 14. e4 {[%emt 0:01:22]} dxe4 {[%emt 0:00:04]} 15. Nxe4 {[%emt 0:00:03]} Nxe4 {[%emt 0:00:06]} 16. Qxe4 {[%emt 0:00:01]} Rb8 {[%emt 0:00:29]} 17. Bd1 {[%emt 0:01:13]} Nc6 {[%emt 0:01:07]} 18. Bc2 {[%emt 0:00:08]} f5 {[%emt 0:00:02]} 19. Qe2 {[%emt 0:00:04]} b5 {[%emt 0:00:40]} 20. Rfe1 {[%emt 0:00:21]} Nd8 {[%emt 0:00:32]} 21. Qe5 {[%emt 0:02:12]} Qxe5 {[%emt 0:00:17]} 22. Nxe5 {[%emt 0:00:02]} Nf7 {[%emt 0:01:52]} 23. Ng6 {[%emt 0:00:24]} Rd8 {[%emt 0:00:57]} 24. Ne7+ {[%emt 0:00:02]} Kf8 {[%emt 0:00:01]} 25. Nc6 {[%emt 0:00:01]} Bd7 {[%emt 0:00:06]} 26. Nxb8 {[%emt 0:00:18]} Rxb8 {[%emt 0:00:02]} 27. b3 {[%emt 0:00:28]} cxb3 {[%emt 0:00:04]} 28. Bxb3 {[%emt 0:00:05]} Rb6 {[%emt 0:00:09]} 29. Re2 {[%emt 0:00:28]} Nd8 {[%emt 0:00:24]} 30. a3 {[%emt 0:00:19]} Kf7 {[%emt 0:00:46]} 31. Rbe1 {[%emt 0:00:06]} Kf6 {[%emt 0:00:02]} 32. f4 {[%emt 0:00:32]} a5 {[%emt 0:00:38]} 33. Re5 {[%emt 0:00:39]} b4 {[%emt 0:00:44]} 34. axb4 {[%emt 0:00:04]} axb4 {[%emt 0:00:02]} 35. c4 {[%emt 0:00:03]} Ra6 {[%emt 0:00:36]} 36. d5 {[%emt 0:01:26]} Nf7 {[%emt 0:01:30]} 37. dxe6 {[%emt 0:00:01]} Nxe5 {[%emt 0:00:18]} 38. Rxe5 {[%emt 0:00:19]} Bxe6 {[%emt 0:00:08]} 39. Rb5 {[%emt 0:00:00]} Ra1+ {[%emt 0:00:20]} 40. Kh2 {[%emt 0:00:21]} Rb1 {[%emt 0:00:02]} 41. Rxb4 {[%emt 0:00:27]} Bxc4 {[%emt 0:00:06]} 42. Rb6+ {[%emt 0:00:01]} Ke7 {[%emt 0:00:01]} 43. Rb7+ {[%emt 0:00:06]} Kd6 {[%emt 0:00:07]} 44. Rxg7 {[%emt 0:00:20]} Rxb3 {[%emt 0:00:02]} 45. Rg6+ {[%emt 0:00:01]} Kd5 {[%emt 0:00:06]} 46. Rxh6 {[%emt 0:00:05]} Ke4 {[%emt 0:00:01]} 47. Rh8 {[%emt 0:00:59]} Bd5 {[%emt 0:00:11]} 48. Rh4 {[%emt 0:00:26]} Rb2 {[%emt 0:00:05]} 49. Kg1 {[%emt 0:00:27]} Ke3 {[%emt 0:00:08]} 50. g4 {[%emt 0:00:13]} Rg2+ {[%emt 0:00:06]} 51. Kf1 {[%emt 0:00:01]} Be4 {[%emt 0:00:19]} 52. gxf5 {[%emt 0:00:12]} Ra2 {[%emt 0:00:56]} 53. Kg1 {[%emt 0:00:07]} Kf3 {[%emt 0:00:17]} 54. Rg4 {[%emt 0:00:07]} Bxf5 {[%emt 0:00:04]} 55. Rg7 {[%emt 0:00:11]} Kxf4 {[%emt 0:00:03]} 1/2-1/2

[Event "Wuerttemberg Rapid Teams 2024"]
[Site "B?blingen, Germany"]
[Date "2024.04.13"]
[Round "9.19"]
[White "Sulzbacher, Kurt"]
[Black "Schulze, Andreas"]
[Result "1/2-1/2"]
[ECO "B74"]
[WhiteElo "1976"]
[BlackElo "2080"]
[Annotator "RC"]
[PlyCount "118"]
[EventDate "2024.04.13"]
[EventType "team-tourn"]
[SourceTitle "playchess.com"]
[Source "ChessBase"]
[SourceQuality "1"]
[TimeControl "900+5"]

1. e4 {[%emt 0:00:03]} c5 {[%emt 0:00:01]} 2. Nf3 {[%emt 0:00:05]} d6 {[%emt 0:00:01]} 3. d4 {[%emt 0:00:02]} cxd4 {[%emt 0:00:01]} 4. Nxd4 {[%emt 0:00:01]} Nf6 {[%emt 0:00:02]} 5. Nc3 {[%emt 0:00:02]} g6 {[%emt 0:00:01]} 6. Be2 {[%emt 0:00:12]} Bg7 {[%emt 0:00:02]} 7. Be3 {[%emt 0:00:02]} O-O {[%emt 0:00:03]} 8. O-O {[%emt 0:00:02]} Nc6 {[%emt 0:00:06]} 9. Nb3 {[%emt 0:00:05]} a6 {[%emt 0:00:23]} 10. a4 {[%emt 0:00:03]} Be6 {[%emt 0:00:16]} 11. f4 {[%emt 0:00:16]} Qd7 {[%emt 0:00:27]} 12. Kh1 {[%emt 0:00:45]} Rac8 {[%emt 0:00:09]} 13. Bf3 {[%emt 0:00:28]} Bc4 {[%emt 0:00:38]} 14. Re1 {[%emt 0:00:08]} e5 {[%emt 0:01:28]} 15. Qd2 {[%emt 0:00:41]} Rfd8 {[%emt 0:02:18]} 16. Rad1 {[%emt 0:00:05]} Ng4 {[%emt 0:00:27]} 17. Bb6 {[%emt 0:00:18]} Bxb3 {[%emt 0:01:00]} 18. Bxd8 {[%emt 0:00:18]} Rxd8 {[%emt 0:00:02]} 19. cxb3 {[%emt 0:00:08]} Nd4 {[%emt 0:00:08]} 20. Bxg4 {[%emt 0:00:48]} Qxg4 {[%emt 0:00:03]} 21. Ne2 {[%emt 0:00:09]} Nxb3 {[%emt 0:00:30]} 22. Qb4 {[%emt 0:00:16]} Nc5 {[%emt 0:00:12]} 23. Nc3 {[%emt 0:00:50]} exf4 {[%emt 0:00:34]} 24. Rf1 {[%emt 0:00:12]} Be5 {[%emt 0:00:57]} 25. Nd5 {[%emt 0:00:19]} Qh4 {[%emt 0:00:36]} 26. Rd2 {[%emt 0:01:51]} f3 {[%emt 0:00:38]} 27. gxf3 {[%emt 0:00:02]} Qh3 {[%emt 0:00:50]} 28. Rg2 {[%emt 0:00:34]} Bxh2 {[%emt 0:00:21]} 29. Rd1 {[%emt 0:01:02]} Be5+ {[%emt 0:00:55]} 30. Kg1 {[%emt 0:00:01]} Qxf3 {[%emt 0:00:02]} 31. Rf1 {[%emt 0:01:56]} Qxe4 {[%emt 0:00:06]} 32. Qxe4 {[%emt 0:00:02]} Nxe4 {[%emt 0:00:03]} 33. Rc2 {[%emt 0:00:04]} Rd7 {[%emt 0:00:44]} 34. b4 {[%emt 0:00:18]} Kg7 {[%emt 0:00:09]} 35. Kg2 {[%emt 0:00:01]} f5 {[%emt 0:00:17]} 36. Nb6 {[%emt 0:00:13]} Rf7 {[%emt 0:00:13]} 37. Rfc1 {[%emt 0:00:16]} f4 {[%emt 0:00:39]} 38. Rc7 {[%emt 0:00:14]} f3+ {[%emt 0:00:01]} 39. Kh3 {[%emt 0:00:28]} Rxc7 {[%emt 0:00:37]} 40. Rxc7+ {[%emt 0:00:01]} Kh6 {[%emt 0:00:01]} 41. Nd5 {[%emt 0:00:06]} Kg5 {[%emt 0:00:38]} 42. Rxb7 {[%emt 0:00:11]} Nd2 {[%emt 0:00:12]} 43. Rf7 {[%emt 0:00:06]} Bd4 {[%emt 0:00:18]} 44. Kg3 {[%emt 0:00:23]} f2 {[%emt 0:00:21]} 45. Rxf2 {[%emt 0:00:01]} Bxf2+ {[%emt 0:00:01]} 46. Kxf2 {[%emt 0:00:02]} Kf5 {[%emt 0:00:29]} 47. b5 {[%emt 0:00:01]} axb5 {[%emt 0:00:01]} 48. a5 {[%emt 0:00:01]} Ne4+ {[%emt 0:00:04]} 49. Ke3 {[%emt 0:00:00]} Nc5 {[%emt 0:00:01]} 50. Nc7 {[%emt 0:00:04]} h5 {[%emt 0:00:06]} 51. Nxb5 {[%emt 0:00:01]} Ke5 {[%emt 0:00:05]} 52. Nc3 {[%emt 0:00:52]} d5 {[%emt 0:00:12]} 53. Ne2 {[%emt 0:00:02]} Kd6 {[%emt 0:00:12]} 54. Nf4 {[%emt 0:00:02]} Kc6 {[%emt 0:00:10]} 55. Nxg6 {[%emt 0:00:02]} Kb5 {[%emt 0:00:02]} 56. Nf4 {[%emt 0:00:04]} h4 {[%emt 0:00:12]} 57. Nxd5 {[%emt 0:00:03]} Kxa5 {[%emt 0:00:02]} 58. Kf3 {[%emt 0:00:02]} Ne6 {[%emt 0:00:17]} 59. Kg4 {[%emt 0:00:03]} Kb5 {[%emt 0:00:03]} 1/2-1/2

[Event "Wuerttemberg Rapid Teams 2024"]
[Site "B?blingen, Germany"]
[Date "2024.04.13"]
[Round "9.20"]
[White "Kaufmann, Gunther"]
[Black "Birkenmaier, Rainer"]
[Result "0-1"]
[ECO "B06"]
[WhiteElo "1852"]
[BlackElo "2111"]
[Annotator "RC"]
[PlyCount "76"]
[EventDate "2024.04.13"]
[EventType "team-tourn"]
[SourceTitle "playchess.com"]
[Source "ChessBase"]
[SourceQuality "1"]
[TimeControl "900+5"]

1. e4 {[%emt 0:00:01]} g6 {[%emt 0:00:01]} 2. d4 {[%emt 0:00:02]} Bg7 {[%emt 0:00:11]} 3. f4 {[%emt 0:00:10]} c6 {[%emt 0:00:00]} 4. Nf3 {[%emt 0:00:03]} d5 {[%emt 0:00:00]} 5. e5 {[%emt 0:00:04]} Bg4 {[%emt 0:00:00]} 6. Be2 {[%emt 0:00:06]} e6 {[%emt 0:00:00]} 7. O-O {[%emt 0:00:04]} h5 {[%emt 0:00:05]} 8. c4 {[%emt 0:01:18]} dxc4 {[%emt 0:00:17]} 9. Bxc4 {[%emt 0:00:13]} Ne7 {[%emt 0:00:03]} 10. Nc3 {[%emt 0:00:12]} Nf5 {[%emt 0:00:06]} 11. h3 {[%emt 0:01:38]} Bxf3 {[%emt 0:00:15]} 12. Rxf3 {[%emt 0:00:02]} Nd7 {[%emt 0:00:47]} 13. Ne4 {[%emt 0:00:12]} Nb6 {[%emt 0:00:13]} 14. Bb3 {[%emt 0:00:26]} O-O {[%emt 0:00:18]} 15. Be3 {[%emt 0:00:21]} Nd5 {[%emt 0:00:20]} 16. Bf2 {[%emt 0:00:53]} h4 {[%emt 0:00:19]} 17. Rc1 {[%emt 0:01:43]} Qe7 {[%emt 0:00:50]} 18. Qe1 {[%emt 0:00:14]} Rfd8 {[%emt 0:00:16]} 19. Ng5 {[%emt 0:00:24]} Qb4 {[%emt 0:01:05]} 20. Qe4 {[%emt 0:02:11]} a5 {[%emt 0:01:25]} 21. Rc4 {[%emt 0:00:24]} Qe7 {[%emt 0:01:00]} 22. a4 {[%emt 0:00:30]} Rac8 {[%emt 0:00:46]} 23. Qe1 {[%emt 0:00:28]} Nb6 {[%emt 0:00:54]} 24. Rc1 {[%emt 0:00:49]} Nxd4 {[%emt 0:00:18]} 25. Bxd4 {[%emt 0:00:54]} Rxd4 {[%emt 0:00:02]} 26. Qxh4 {[%emt 0:00:04]} Rcd8 {[%emt 0:01:46]} 27. Qh7+ {[%emt 0:00:28]} Kf8 {[%emt 0:00:01]} 28. Bxe6 {[%emt 0:01:02]} Rd1+ {[%emt 0:00:23]} 29. Rxd1 {[%emt 0:00:11]} Rxd1+ {[%emt 0:00:01]} 30. Kh2 {[%emt 0:00:02]} fxe6 {[%emt 0:00:40]} 31. Qxg6 {[%emt 0:00:06]} Rd7 {[%emt 0:01:02]} 32. Nxe6+ {[%emt 0:00:10]} Kg8 {[%emt 0:00:01]} 33. Rg3 {[%emt 0:01:29]} Qf7 {[%emt 0:01:15]} 34. f5 {[%emt 0:01:13]} Qxg6 {[%emt 0:00:22]} 35. Rxg6 {[%emt 0:00:02]} Re7 {[%emt 0:00:16]} 36. Rxg7+ {[%emt 0:00:09]} Rxg7 {[%emt 0:00:02]} 37. Nxg7 {[%emt 0:00:02]} Kxg7 38. g4 {[%emt 0:00:02]} Nxa4 {[%emt 0:00:04]} 0-1

[Event "Wuerttemberg Rapid Teams 2024"]
[Site "B?blingen, Germany"]
[Date "2024.04.13"]
[Round "9.21"]
[White "Gabriel, Robert"]
[Black "Kottke, Markus"]
[Result "1/2-1/2"]
[ECO "E61"]
[WhiteElo "2161"]
[BlackElo "2218"]
[Annotator "RC"]
[PlyCount "72"]
[EventDate "2024.04.13"]
[EventType "team-tourn"]
[SourceTitle "playchess.com"]
[Source "ChessBase"]
[SourceQuality "1"]
[TimeControl "900+5"]

1. d4 {[%emt 0:00:02]} Nf6 {[%emt 0:00:00]} 2. Nf3 {[%emt 0:00:03]} g6 {[%emt 0:00:01]} 3. c4 {[%emt 0:00:04]} Bg7 {[%emt 0:00:01]} 4. Nc3 {[%emt 0:00:05]} d6 {[%emt 0:00:01]} 5. Bg5 {[%emt 0:00:15]} O-O {[%emt 0:00:14]} 6. e3 {[%emt 0:00:03]} Nbd7 {[%emt 0:00:23]} 7. Be2 {[%emt 0:00:08]} c6 {[%emt 0:00:28]} 8. O-O {[%emt 0:00:09]} Qc7 {[%emt 0:00:12]} 9. h3 {[%emt 0:00:19]} e5 {[%emt 0:00:28]} 10. dxe5 {[%emt 0:00:09]} dxe5 {[%emt 0:00:05]} 11. Qc2 {[%emt 0:01:42]} a5 {[%emt 0:00:04]} 12. Rfd1 {[%emt 0:00:12]} Nc5 {[%emt 0:00:23]} 13. e4 {[%emt 0:00:32]} Ne6 {[%emt 0:00:37]} 14. Be3 {[%emt 0:00:04]} Nh5 {[%emt 0:01:24]} 15. Na4 {[%emt 0:00:21]} Nhf4 {[%emt 0:00:39]} 16. Bf1 {[%emt 0:00:07]} f5 {[%emt 0:00:30]} 17. Nb6 {[%emt 0:00:15]} Rb8 {[%emt 0:00:18]} 18. c5 {[%emt 0:00:50]} Kh8 {[%emt 0:00:27]} 19. Nxc8 {[%emt 0:00:31]} Rbxc8 {[%emt 0:00:06]} 20. Bc4 {[%emt 0:00:06]} Rcd8 {[%emt 0:00:21]} 21. a3 {[%emt 0:01:21]} Nd4 {[%emt 0:00:26]} 22. Nxd4 {[%emt 0:00:07]} exd4 {[%emt 0:00:02]} 23. Bxf4 {[%emt 0:00:06]} Qxf4 {[%emt 0:00:02]} 24. exf5 {[%emt 0:00:14]} Rxf5 {[%emt 0:00:19]} 25. Bd3 {[%emt 0:00:28]} Rg5 {[%emt 0:00:22]} 26. g3 {[%emt 0:00:17]} Qf8 {[%emt 0:01:09]} 27. b4 {[%emt 0:00:11]} Rd7 {[%emt 0:03:01]} 28. Kg2 {[%emt 0:00:29]} Rf7 {[%emt 0:00:04]} 29. Re1 {[%emt 0:00:33]} Qd8 {[%emt 0:00:43]} 30. Rad1 {[%emt 0:02:20]} axb4 {[%emt 0:00:06]} 31. axb4 {[%emt 0:00:02]} Re5 {[%emt 0:00:16]} 32. Rxe5 {[%emt 0:00:14]} Bxe5 {[%emt 0:00:01]} 33. Re1 {[%emt 0:00:09]} Bf6 {[%emt 0:00:41]} 34. Bc4 {[%emt 0:01:03]} Re7 {[%emt 0:00:20]} 35. Rxe7 {[%emt 0:00:04]} Qxe7 {[%emt 0:00:01]} 36. Qe2 {[%emt 0:00:10]} Qxe2 {[%emt 0:00:45]} 1/2-1/2

[Event "Wuerttemberg Rapid Teams 2024"]
[Site "B?blingen, Germany"]
[Date "2024.04.13"]
[Round "9.22"]
[White "Hofer, Markus"]
[Black "Gabriel, Josef"]
[Result "0-1"]
[ECO "B06"]
[WhiteElo "2047"]
[BlackElo "1997"]
[Annotator "NA RC"]
[PlyCount "60"]
[EventDate "2024.04.13"]
[EventType "team-tourn"]
[SourceTitle "playchess.com"]
[Source "ChessBase"]
[SourceQuality "1"]
[TimeControl "900+5"]

1. d4 {[%emt 0:00:01]} g6 {[%emt 0:00:01]} 2. e4 {[%emt 0:00:04]} d6 {[%emt 0:00:02]} 3. Nc3 {[%emt 0:00:06]} Bg7 {[%emt 0:00:04]} 4. Nf3 {[%emt 0:00:01]} a6 {[%emt 0:00:01]} 5. a4 {[%emt 0:00:13]} b6 {[%emt 0:00:03]} 6. Be2 {[%emt 0:00:09]} Bb7 {[%emt 0:00:03]} 7. O-O {[%emt 0:00:07]} Nd7 {[%emt 0:00:00]} 8. Be3 {[%emt 0:00:25]} e5 {[%emt 0:00:11]} 9. dxe5 {[%emt 0:00:59]} Nxe5 {[%emt 0:00:32]} 10. Nd4 {[%emt 0:00:25]} Ne7 {[%emt 0:00:22]} 11. f4 {[%emt 0:00:06]} N5c6 {[%emt 0:00:00]} 12. f5 {[%emt 0:01:02]} Nxd4 {[%emt 0:00:40]} 13. Bxd4 {[%emt 0:00:01]} Be5 {[%emt 0:00:16]} 14. fxg6 {[%emt 0:03:19]} hxg6 {[%emt 0:00:05]} 15. Bxe5 {[%emt 0:00:06]} dxe5 {[%emt 0:00:02]} 16. Bc4 {[%emt 0:00:04]} O-O {[%emt 0:01:39]} 17. Qf3 {[%emt 0:00:03]} Qd4+ {[%emt 0:00:03]} 18. Rf2 {[%emt 0:00:34]} Qxc4 {[%emt 0:00:01]} 19. Raf1 {[%emt 0:00:01]} Rad8 {[%emt 0:00:43]} 20. h4 {[%emt 0:00:12]} Rd4 {[%emt 0:00:18]} 21. h5 {[%emt 0:00:08]} Bxe4 {[%emt 0:00:25]} 22. Nxe4 {[%emt 0:00:53]} Rxe4 {[%emt 0:00:02]} 23. b3 {[%emt 0:00:45]} Qc6 {[%emt 0:00:43]} 24. Qg3 {[%emt 0:01:50]} Rf4 {[%emt 0:00:21]} 25. Rxf4 {[%emt 0:00:12]} exf4 {[%emt 0:00:02]} 26. Qxf4 {[%emt 0:00:06]} Qc5+ {[%emt 0:00:04]} 27. Rf2 {[%emt 0:00:11]} Qxh5 {[%emt 0:00:02]} 28. g4 {[%emt 0:00:30]} Qc5 {[%emt 0:00:14]} 29. b4 {[%emt 0:00:06]} Qc3 {[%emt 0:00:18]} 30. Rh2 {[%emt 0:00:51]} Nd5 {[%emt 0:00:31]} 0-1

[Event "Wuerttemberg Rapid Teams 2024"]
[Site "B?blingen, Germany"]
[Date "2024.04.13"]
[Round "9.24"]
[White "Brettschneider, Karl"]
[Black "Siegle, Florian"]
[Result "1-0"]
[ECO "A16"]
[WhiteElo "1965"]
[BlackElo "1912"]
[Annotator "TA"]
[PlyCount "59"]
[EventDate "2024.04.13"]
[EventType "team-tourn"]
[SourceTitle "playchess.com"]
[Source "ChessBase"]
[SourceQuality "1"]
[TimeControl "900+5"]

{[%evp 9,59,8,43,59,67,54,90,97,95,25,18,17,54,0,104,91,139,135,133,137,167,98,91,87,103,94,160,179,210,169,205,154,256,254,295,209,515,382,421,444,422,387,386,377,816,831,835,816,2565,2180,29984,29985]} 1. c4 {[%emt 0:00:02]} Nf6 {[%emt 0:00:10]} 2. Nc3 {[%emt 0:00:04]} d5 {[%emt 0:00:09]} 3. cxd5 {[%emt 0:00:05]} Nxd5 {[%emt 0:00:02]} 4. g3 {[%emt 0:00:04]} Nxc3 {[%emt 0:00:04]} 5. bxc3 {[%emt 0:00:02]} Bd7 {[%emt 0:00:14]} 6. Bg2 {[%emt 0:00:03]} Bc6 {[%emt 0:00:01]} 7. Nf3 {[%emt 0:00:09]} g5 {[%emt 0:00:18][%cal Bg7g5,Bg5g4][%mdl 32]} 8. O-O {[%emt 0:00:06] White is better.} g4 {[%emt 0:00:08]} 9. Nd4 {[%emt 0:00:23]} ({White should play} 9. Ne1 $16) 9... Bxg2 $11 {[%emt 0:00:07]} 10. Kxg2 {[%emt 0:00:03] With the idea Qb3.} h5 {[%emt 0:00:39]} 11. e4 {[%emt 0:00:38]} (11. Qb3 $14) 11... Bg7 {[%emt 0:01:33]} (11... e5 $11 {keeps the balance.} 12. Qa4+ Qd7 13. Qxd7+ Kxd7) 12. Nf5 $16 {[%emt 0:00:24]} Bf6 {[%emt 0:00:34]} (12... Qd3 $142 13. Nxg7+ Kf8) 13. d4 {[%emt 0:00:25][%cal Bd2d4,Bd4d5][%mdl 32]} e6 {[%emt 0:01:03] [#]} 14. Ne3 {[%emt 0:00:37]} Be7 {[%emt 0:00:51]} 15. Qb3 {[%emt 0:01:13]} (15. f3 $18) 15... b6 {[%emt 0:00:34]} 16. Bb2 {[%emt 0:01:13]} Nd7 {[%emt 0:01:36]} 17. Rad1 {[%emt 0:01:02] White is more active.} Nf6 {[%emt 0:01:18]} ({Black should try} 17... Qc8) 18. d5 {[%emt 0:01:09]} e5 {[%emt 0:00:32]} 19. f3 {[%emt 0:01:15][%cal Od5d6] [#] aiming for d6!} Bd6 {[%emt 0:00:21]} 20. Qc2 {[%emt 0:01:05]} Bc5 {[%emt 0:01:14]} (20... Nd7 $16 21. f4 (21. fxg4 Qg5 $16) 21... f6) 21. Nf5 $18 {[%emt 0:00:25][%cal Be3f5,Bf5g7,Bg7f5][%mdl 32] Hoping for f4.} Qd7 {[%emt 0:01:28]} 22. Ng7+ {[%emt 0:00:49]} Ke7 $2 {[%emt 0:00:27]} (22... Kf8 {is a better chance.}) 23. Nf5+ {[%emt 0:00:08]} Kf8 {[%emt 0:00:29]} 24. f4 {[%emt 0:00:34]} Re8 {[%emt 0:01:13][%cal Ba8e8,Be8e5,Be5e4][%mdl 32]} 25. fxe5 {[%emt 0:00:33]} Rxe5 {[%emt 0:00:58]} 26. c4 {[%emt 0:00:03]} Bd6 {[%emt 0:00:39]} (26... Qe8 27. Bxe5 Qxe5) 27. Nxd6 {[%emt 0:00:19]} Qxd6 {[%emt 0:00:04]} 28. Qf2 {[%emt 0:01:02]} Rh6 {[%emt 0:00:17]} 29. Qf4 {[%emt 0:00:36]} Rxe4 {[%emt 0:00:39]} 30. Qxh6+ {[%emt 0:00:07] Weighted Error Value: White=0.32/Black=0.71.  Mistake:       	White=3     	Black=6      Inaccurate:     	---       	Black=2      OK:         	White=8     	Black=7      Best:        	White=1     	Black=1} 1-0